{"text_format":"3","workbook":"xlsx","n_sheets":1,"sheets":["Računalo za posojilo"],"not_rendered":{"defined_names":9},"read":"whole","date_system":"1900"}

{"sheet":"Računalo za posojilo","index":0,"n_rows":22,"n_cols":13,"rows_kept":22,"merged":[[1,1,1,3],[1,6,2,8],[1,11,2,12],[2,1,2,3],[6,5,6,6],[7,5,7,6],[10,2,10,5],[10,6,10,8],[10,9,10,12],[18,2,18,12]]}
[]
[null,"ŠTUDENTSKO POSOJILO ",{"$nulls":4},{"v":50000,"d":"50,000 €"},{"$nulls":4},"2011-05-10"]
[null,"RAČUNALO "]
[]
[null," Priporočamo, da skupni znesek za mesečno odplačevanje študentskega posojila ne presega 8 % vaše prve letne plače."]
[]
[null,null,"Vaša trenutna kombinirana mesečna plača je:",null,null,{"$f":"ŠtudentskaPosojila[[#Totals],[Trenutna mesečna plača]]","v":{"v":328.58590726058833,"d":"328.59 €"}},null,null,"Razporeditev vaše kombinirane mesečne plače je:",{"$nulls":3},{"$f":"ŠtudentskaPosojila[[#Totals],[Razpored plačila]]","v":{"v":328.58590726058833,"d":"328.59 €"}}]
[null,null,"Odstotek mesečnih prihodkov:",null,null,{"$f":"ŠtudentskaPosojila[[#Totals],[Trenutna mesečna plača]]/PredvidenaMesečnaPlača","v":{"v":0.07886061774254119,"d":"7.89%"}},null,null,"  Odstotek mesečnih prihodkov:",{"$nulls":3},{"$f":"ŠtudentskaPosojila[[#Totals],[Razpored plačila]]/PredvidenaMesečnaPlača","v":{"v":0.07886061774254119,"d":"7.89%"}}]
[]
[]
[null,null,"SPLOŠNE PODROBNOSTI POSOJILA",{"$nulls":3},"PODROBNOSTI ODPLAČEVANJA POSOJILA",null,null,"PODROBNOSTI PLAČE"]
[null,null,"Št. posojila","Upnik","Znesek posojila","Letna obrestna mera","Začetni datum","Trajanje \n(v letih)","Končni datum","Trenutna mesečna plača","Skupna obrestna mera","Razpored plačila","Letna plača"]
[null,null,"10998M88","Upnik 1",{"v":10000,"d":"10,000.00 €"},{"v":0.05,"d":"5.00%"},"2011-04-01",10,{"$f":"IF(AND(ŠtudentskaPosojila[[#This Row],[Začetni datum]]>0,ŠtudentskaPosojila[[#This Row],[Trajanje \n(v letih)]]>0),EDATE(ŠtudentskaPosojila[[#This Row],[Začetni datum]],ŠtudentskaPosojila[[#This Row],[Trajanje \n(v letih)]]*12),\"\")","v":"2021-04-01"},{"$f":"IF(AND(ZačetekPosojilaDanes,COUNT(ŠtudentskaPosojila[[#This Row],[Znesek posojila]]:ŠtudentskaPosojila[[#This Row],[Trajanje \n(v letih)]])=4,ŠtudentskaPosojila[[#This Row],[Začetni datum]]<TODAY()),PMT(ŠtudentskaPosojila[[#This Row],[Letna obrestna mera]]/12,ŠtudentskaPosojila[[#This Row],[Trajanje \n(v letih)]]*12,-ŠtudentskaPosojila[[#This Row],[Znesek posojila]],0,0),\"\")","v":{"v":106.06551523907524,"d":"106.07 €"}},{"$f":"IFERROR((ŠtudentskaPosojila[[#This Row],[Razpored plačila]]*(ŠtudentskaPosojila[[#This Row],[Trajanje \n(v letih)]]*12))-ŠtudentskaPosojila[[#This Row],[Znesek posojila]],\"\")","v":{"v":2727.8618286890287,"d":"2,727.86 €"}},{"$f":"IF(COUNTA(ŠtudentskaPosojila[[#This Row],[Znesek posojila]]:ŠtudentskaPosojila[[#This Row],[Trajanje \n(v letih)]])<>4,\"\",PMT(ŠtudentskaPosojila[[#This Row],[Letna obrestna mera]]/12,ŠtudentskaPosojila[[#This Row],[Trajanje \n(v letih)]]*12,-ŠtudentskaPosojila[[#This Row],[Znesek posojila]],0,0))","v":{"v":106.06551523907524,"d":"106.07 €"}},{"$f":"IFERROR(ŠtudentskaPosojila[[#This Row],[Razpored plačila]]*12,\"\")","v":{"v":1272.7861828689029,"d":"1,272.79 €"}}]
[null,null,"20987N87","Upnik 2",{"v":8000,"d":"8,000.00 €"},{"v":0.05,"d":"5.00%"},"2011-05-01",10,{"$f":"IF(AND(ŠtudentskaPosojila[[#This Row],[Začetni datum]]>0,ŠtudentskaPosojila[[#This Row],[Trajanje \n(v letih)]]>0),EDATE(ŠtudentskaPosojila[[#This Row],[Začetni datum]],ŠtudentskaPosojila[[#This Row],[Trajanje \n(v letih)]]*12),\"\")","v":"2021-05-01"},{"$f":"IF(AND(ZačetekPosojilaDanes,COUNT(ŠtudentskaPosojila[[#This Row],[Znesek posojila]]:ŠtudentskaPosojila[[#This Row],[Trajanje \n(v letih)]])=4,ŠtudentskaPosojila[[#This Row],[Začetni datum]]<TODAY()),PMT(ŠtudentskaPosojila[[#This Row],[Letna obrestna mera]]/12,ŠtudentskaPosojila[[#This Row],[Trajanje \n(v letih)]]*12,-ŠtudentskaPosojila[[#This Row],[Znesek posojila]],0,0),\"\")","v":{"v":84.85241219126019,"d":"84.85 €"}},{"$f":"IFERROR((ŠtudentskaPosojila[[#This Row],[Razpored plačila]]*(ŠtudentskaPosojila[[#This Row],[Trajanje \n(v letih)]]*12))-ŠtudentskaPosojila[[#This Row],[Znesek posojila]],\"\")","v":{"v":2182.289462951223,"d":"2,182.29 €"}},{"$f":"IF(COUNTA(ŠtudentskaPosojila[[#This Row],[Znesek posojila]]:ŠtudentskaPosojila[[#This Row],[Trajanje \n(v letih)]])<>4,\"\",PMT(ŠtudentskaPosojila[[#This Row],[Letna obrestna mera]]/12,ŠtudentskaPosojila[[#This Row],[Trajanje \n(v letih)]]*12,-ŠtudentskaPosojila[[#This Row],[Znesek posojila]],0,0))","v":{"v":84.85241219126019,"d":"84.85 €"}},{"$f":"IFERROR(ŠtudentskaPosojila[[#This Row],[Razpored plačila]]*12,\"\")","v":{"v":1018.2289462951222,"d":"1,018.23 €"}}]
[null,null,"36785LM","Upnik 3",{"v":6000,"d":"6,000.00 €"},{"v":0.045,"d":"4.50%"},"2012-03-01",10,{"$f":"IF(AND(ŠtudentskaPosojila[[#This Row],[Začetni datum]]>0,ŠtudentskaPosojila[[#This Row],[Trajanje \n(v letih)]]>0),EDATE(ŠtudentskaPosojila[[#This Row],[Začetni datum]],ŠtudentskaPosojila[[#This Row],[Trajanje \n(v letih)]]*12),\"\")","v":"2022-03-01"},{"$f":"IF(AND(ZačetekPosojilaDanes,COUNT(ŠtudentskaPosojila[[#This Row],[Znesek posojila]]:ŠtudentskaPosojila[[#This Row],[Trajanje \n(v letih)]])=4,ŠtudentskaPosojila[[#This Row],[Začetni datum]]<TODAY()),PMT(ŠtudentskaPosojila[[#This Row],[Letna obrestna mera]]/12,ŠtudentskaPosojila[[#This Row],[Trajanje \n(v letih)]]*12,-ŠtudentskaPosojila[[#This Row],[Znesek posojila]],0,0),\"\")","v":{"v":62.18304525420918,"d":"62.18 €"}},{"$f":"IFERROR((ŠtudentskaPosojila[[#This Row],[Razpored plačila]]*(ŠtudentskaPosojila[[#This Row],[Trajanje \n(v letih)]]*12))-ŠtudentskaPosojila[[#This Row],[Znesek posojila]],\"\")","v":{"v":1461.9654305051017,"d":"1,461.97 €"}},{"$f":"IF(COUNTA(ŠtudentskaPosojila[[#This Row],[Znesek posojila]]:ŠtudentskaPosojila[[#This Row],[Trajanje \n(v letih)]])<>4,\"\",PMT(ŠtudentskaPosojila[[#This Row],[Letna obrestna mera]]/12,ŠtudentskaPosojila[[#This Row],[Trajanje \n(v letih)]]*12,-ŠtudentskaPosojila[[#This Row],[Znesek posojila]],0,0))","v":{"v":62.18304525420918,"d":"62.18 €"}},{"$f":"IFERROR(ŠtudentskaPosojila[[#This Row],[Razpored plačila]]*12,\"\")","v":{"v":746.1965430505102,"d":"746.20 €"}}]
[null,null,"765R43","Upnik 4",{"v":4000,"d":"4,000.00 €"},{"v":0.05,"d":"5.00%"},"2012-05-01",5,{"$f":"IF(AND(ŠtudentskaPosojila[[#This Row],[Začetni datum]]>0,ŠtudentskaPosojila[[#This Row],[Trajanje \n(v letih)]]>0),EDATE(ŠtudentskaPosojila[[#This Row],[Začetni datum]],ŠtudentskaPosojila[[#This Row],[Trajanje \n(v letih)]]*12),\"\")","v":"2017-05-01"},{"$f":"IF(AND(ZačetekPosojilaDanes,COUNT(ŠtudentskaPosojila[[#This Row],[Znesek posojila]]:ŠtudentskaPosojila[[#This Row],[Trajanje \n(v letih)]])=4,ŠtudentskaPosojila[[#This Row],[Začetni datum]]<TODAY()),PMT(ŠtudentskaPosojila[[#This Row],[Letna obrestna mera]]/12,ŠtudentskaPosojila[[#This Row],[Trajanje \n(v letih)]]*12,-ŠtudentskaPosojila[[#This Row],[Znesek posojila]],0,0),\"\")","v":{"v":75.48493457604374,"d":"75.48 €"}},{"$f":"IFERROR((ŠtudentskaPosojila[[#This Row],[Razpored plačila]]*(ŠtudentskaPosojila[[#This Row],[Trajanje \n(v letih)]]*12))-ŠtudentskaPosojila[[#This Row],[Znesek posojila]],\"\")","v":{"v":529.0960745626244,"d":"529.10 €"}},{"$f":"IF(COUNTA(ŠtudentskaPosojila[[#This Row],[Znesek posojila]]:ŠtudentskaPosojila[[#This Row],[Trajanje \n(v letih)]])<>4,\"\",PMT(ŠtudentskaPosojila[[#This Row],[Letna obrestna mera]]/12,ŠtudentskaPosojila[[#This Row],[Trajanje \n(v letih)]]*12,-ŠtudentskaPosojila[[#This Row],[Znesek posojila]],0,0))","v":{"v":75.48493457604374,"d":"75.48 €"}},{"$f":"IFERROR(ŠtudentskaPosojila[[#This Row],[Razpored plačila]]*12,\"\")","v":{"v":905.8192149125249,"d":"905.82 €"}}]
[null,null,"Vsota",null,{"$f":"SUBTOTAL(109,ŠtudentskaPosojila[Znesek posojila])","v":{"v":28000,"d":"28,000.00 €"}},{"$nulls":4},{"$f":"SUBTOTAL(109,ŠtudentskaPosojila[Trenutna mesečna plača])","v":{"v":328.58590726058833,"d":"328.59 €"}},{"$f":"SUBTOTAL(109,ŠtudentskaPosojila[Skupna obrestna mera])","v":{"v":6901.212796707978,"d":"6,901.21 €"}},{"$f":"SUBTOTAL(109,ŠtudentskaPosojila[Razpored plačila])","v":{"v":328.58590726058833,"d":"328.59 €"}},{"$f":"SUBTOTAL(109,ŠtudentskaPosojila[Letna plača])","v":{"v":3943.03088712706,"d":"3,943.03 €"}}]
[null,null,"Povprečja",null,{"$f":"AVERAGE(ŠtudentskaPosojila[Znesek posojila])","v":{"v":7000,"d":"7,000.00 €"}},{"$f":"AVERAGE(ŠtudentskaPosojila[Letna obrestna mera])","v":{"v":0.04875,"d":"4.88%"}},{"$nulls":4},{"$f":"AVERAGE(ŠtudentskaPosojila[Skupna obrestna mera])","v":{"v":1725.3031991769944,"d":"1,725.30 €"}},null,{"$f":"AVERAGE(ŠtudentskaPosojila[Letna plača])","v":{"v":985.757721781765,"d":"985.76 €"}}]
[]
[{"$nulls":10},"Konsolidiran skupen znesek za odplačevanje posojila:",null,{"$f":"ŠtudentskaPosojila[[#Totals],[Znesek posojila]]+ŠtudentskaPosojila[[#Totals],[Skupna obrestna mera]]","v":{"v":34901.21279670798,"d":"34,901.21 €"}}]
[]
[{"$nulls":10},"Predviden mesečni prihodek po diplomi:",null,{"$f":"(PredvidenaLetnaPlača/12)","v":{"v":4166.666666666667,"d":"4,166.67 €"}}]